bitfinex/quotes_BTCUSD_20250408
["timestamp","ask_amount","ask_price","bid_price","bid_amount"]
[1744117366664,0.2628581,79942.0,79930.0,0.01251]
[1744117366863,0.00041756,79940.0,79938.0,0.250192]
[1744117367062,0.00041756,79940.0,79939.0,0.262699]
[1744117367468,0.00041756,79940.0,79939.0,0.25019]
[1744117367694,0.00041756,79940.0,79936.0,0.01251]
[1744117367895,0.00041756,79940.0,79938.0,0.250191]
[1744117368232,0.00041756,79940.0,79939.0,0.38895764]
[1744117368377,6.6e-07,79942.0,79941.0,0.262693]
[1744117368584,0.00012586,79942.0,79941.0,0.40349249]
[1744117369759,0.00012586,79942.0,79941.0,0.81789249]
[1744117370184,0.00012586,79942.0,79941.0,0.96989249]
[1744117370475,0.00012586,79942.0,79941.0,0.97189249]
[1744117372402,0.00012586,79942.0,79941.0,0.70919949]
[1744117372586,0.00012586,79942.0,79941.0,0.95938349]
[1744117372785,0.00012586,79942.0,79941.0,0.97189249]
[1744117373190,0.00012586,79942.0,79941.0,0.97166049]
[1744117373524,0.00012586,79942.0,79941.0,1.10675964]
[1744117373876,0.00012586,79942.0,79941.0,1.12130049]
[1744117374068,0.00012586,79942.0,79941.0,0.97166049]
[1744117374268,0.00012586,79942.0,79941.0,1.12130049]
[1744117376382,0.00012586,79942.0,79941.0,1.11902151]
[1744117376581,8.6e-07,79942.0,79941.0,1.11902151]
[1744117377346,8.6e-07,79942.0,79941.0,1.11702151]
[1744117378372,8.6e-07,79942.0,79941.0,1.11502151]
[1744117378909,8.6e-07,79942.0,79941.0,1.12002151]
[1744117379129,8.6e-07,79942.0,79941.0,1.12502151]
[1744117379897,8.6e-07,79942.0,79941.0,1.46502151]
[1744117380489,8.6e-07,79942.0,79941.0,1.50390794]
[1744117380691,8.6e-07,79942.0,79941.0,1.46502151]
[1744117380889,8.6e-07,79942.0,79941.0,1.50390267]
[1744117381095,8.6e-07,79942.0,79941.0,1.55330267]
[1744117381368,8.6e-07,79942.0,79941.0,1.54830267]
[1744117381725,8.6e-07,79942.0,79941.0,1.55430267]
[1744117381925,8.6e-07,79942.0,79941.0,1.59540267]
[1744117382136,8.6e-07,79942.0,79941.0,1.58940267]
[1744117382335,0.0001681,79955.0,79954.0,0.47329085]
[1744117382534,0.0001681,79955.0,79954.0,1.01394863]
[1744117383396,0.0001681,79955.0,79954.0,0.96784863]
[1744117385421,0.0001681,79955.0,79954.0,0.97484863]
[1744117385813,0.0001681,79955.0,79954.0,0.83184863]
[1744117385990,0.0001681,79955.0,79954.0,0.98184863]
[1744117387020,5.825e-05,79955.0,79954.0,0.98184863]
[1744117389139,5.825e-05,79955.0,79954.0,0.83184863]
[1744117390491,5.825e-05,79955.0,79954.0,0.98140863]
[1744117392093,0.250093,79971.0,79967.0,0.2501]
[1744117392348,0.25021217,79972.0,79968.0,0.28832364]
[1744117392506,0.00012517,79972.0,79970.0,0.250093]
[1744117392905,0.25009,79971.0,79968.0,0.399659]
[1744117393112,0.01262917,79972.0,79968.0,0.399659]
[1744117393113,0.00012517,79972.0,79968.0,0.399659]
[1744117393307,0.00012517,79972.0,79971.0,0.25009]
[1744117393510,0.25021217,79972.0,79968.0,0.14956]
[1744117393729,0.2626,79969.0,79968.0,0.14956]
[1744117393930,0.250096,79969.0,79968.0,0.14956]
[1744117394564,0.2626,79969.0,79968.0,0.14956]
[1744117395117,0.2626,79969.0,79968.0,0.15892219]
[1744117395559,0.250096,79969.0,79968.0,0.15892219]
[1744117395792,0.2626,79969.0,79968.0,0.15892219]
[1744117396204,0.00012517,79972.0,79968.0,0.17142719]
[1744117396430,0.00012517,79972.0,79971.0,0.262594]
[1744117397617,0.250095,79970.0,79968.0,0.15892219]
[1744117397818,0.26272217,79972.0,79968.0,0.40902119]
[1744117398049,0.250091,79971.0,79968.0,0.40902119]
[1744117398393,0.00012517,79972.0,79970.0,0.250093]
[1744117398602,0.00012517,79972.0,79969.0,0.262599]
[1744117398809,0.00112517,79972.0,79968.0,0.40902119]
[1744117399005,0.00112517,79972.0,79970.0,0.250093]
[1744117399223,0.00112517,79972.0,79971.0,0.262594]
[1744117399586,0.00012517,79972.0,79971.0,0.25009]
[1744117399789,0.00012517,79972.0,79971.0,0.262594]
[1744117400677,0.00212517,79972.0,79971.0,0.262594]
[1744117400912,0.00212517,79972.0,79970.0,0.262597]
[1744117401067,0.250091,79971.0,79968.0,0.40902119]
[1744117401240,0.00212517,79972.0,79969.0,0.012504]
[1744117401446,0.00212517,79972.0,79971.0,0.25009]
[1744117401645,0.250096,79969.0,79968.0,0.15892219]
[1744117402232,0.250096,79971.0,79969.0,0.250096]
[1744117402439,0.250096,79971.0,79968.0,0.40901919]
[1744117402647,0.250096,79969.0,79968.0,0.15892219]
[1744117402890,0.00012517,79972.0,79968.0,0.15992219]
[1744117403094,0.00012517,79972.0,79968.0,0.40901919]
[1744117403400,0.25021817,79972.0,79969.0,0.250096]
[1744117403605,0.250092,79971.0,79968.0,0.42152119]
[1744117403830,0.250094,79970.0,79968.0,0.40901619]
[1744117404164,0.250092,79971.0,79968.0,0.40901619]
[1744117404912,0.00012517,79972.0,79969.0,0.250096]
[1744117405074,0.25021517,79972.0,79969.0,0.250096]
[1744117405276,0.00012517,79972.0,79971.0,0.25009]
[1744117405496,0.00012517,79972.0,79971.0,0.262594]
[1744117405908,0.00012517,79972.0,79971.0,0.40339349]
[1744117406597,0.250096,79969.0,79968.0,0.15892219]
[1744117406817,0.00212517,79972.0,79968.0,0.15892219]
[1744117407018,0.250093,79971.0,79969.0,0.250096]
[1744117407224,0.25221817,79972.0,79969.0,0.250095]
[1744117407420,0.250095,79970.0,79968.0,0.14956]
[1744117407622,0.250096,79969.0,79968.0,0.14956]
[1744117407825,0.2626,79969.0,79968.0,0.15905031]
[1744117408458,0.2626,79969.0,79968.0,0.16005031]
[1744117408657,0.2626,79969.0,79968.0,0.15905031]
[1744117408832,0.01262917,79972.0,79968.0,0.17155531]
[1744117408833,0.00012517,79972.0,79968.0,0.17155531]
[1744117409157,0.00012517,79972.0,79971.0,0.25009]
[1744117409731,0.00012517,79972.0,79968.0,0.15905031]
[1744117409916,0.25021317,79972.0,79969.0,0.2626]
[1744117410143,0.00012517,79972.0,79968.0,0.15905031]
[1744117410343,0.00012517,79972.0,79967.0,0.99064]
[1744117410344,0.2626,79969.0,79967.0,0.99064]
[1744117410543,0.012506,79958.0,79957.0,0.14952]
[1744117410885,0.250137,79956.0,79955.0,0.14952]
[1744117411201,0.00012517,79972.0,79960.0,0.012506]
[1744117411408,0.250109,79965.0,79961.0,0.14952]
[1744117411607,0.012504,79969.0,79961.0,0.162026]
[1744117411823,0.34,79965.0,79963.0,0.250114]
[1744117412029,0.590111,79965.0,79962.0,0.250118]
[1744117412227,0.012505,79963.0,79958.0,0.2596338]
[1744117412447,0.250119,79962.0,79959.0,0.14952]
[1744117412785,0.262631,79960.0,79959.0,0.14952]
[1744117413199,0.355505,79965.0,79959.0,0.14952]
[1744117413519,0.250122,79961.0,79959.0,0.14952]
[1744117413702,0.250125,79960.0,79959.0,0.14952]
[1744117414097,0.262631,79960.0,79959.0,0.14952]
[1744117414320,0.250116,79963.0,79958.0,0.0095048]
[1744117414502,0.250103,79967.0,79962.0,0.250116]
[1744117414660,0.00012517,79972.0,79966.0,0.012505]
[1744117414862,0.25021417,79972.0,79967.0,0.012505]
[1744117415064,0.250096,79969.0,79966.0,0.012505]
[1744117415286,0.2501,79968.0,79966.0,0.250103]
[1744117415612,0.2501,79968.0,79965.0,0.250107]
[1744117415811,0.24999748,79968.0,79965.0,0.250107]
[1744117416015,0.00112517,79972.0,79968.0,0.012505]
[1744117416214,0.00012517,79972.0,79971.0,0.25009]
[1744117416513,0.25021317,79972.0,79969.0,0.262597]
[1744117416821,0.25021317,79972.0,79964.0,0.262611]
[1744117416822,0.250119,79962.0,79957.0,0.56439914]
[1744117417003,0.250119,79962.0,79958.0,0.25948738]
[1744117417362,0.250109,79965.0,79960.0,0.26263]
[1744117417565,0.001,79968.0,79967.0,0.250103]
[1744117417881,0.001,79968.0,79966.0,0.250104]
[1744117418088,0.001,79968.0,79967.0,0.262608]
[1744117418417,0.250098,79969.0,79966.0,0.250106]
[1744117418625,0.00012517,79972.0,79968.0,0.262598]
[1744117418783,0.25021517,79972.0,79966.0,0.250105]
[1744117418986,0.250097,79969.0,79966.0,0.250105]
[1744117419326,0.01262917,79972.0,79967.0,0.250102]
[1744117419580,0.250092,79971.0,79968.0,0.250097]
[1744117420060,0.00112517,79972.0,79970.0,0.262594]
[1744117420221,0.00012517,79972.0,79971.0,0.262594]
[1744117421085,0.250103,79967.0,79963.0,0.250115]
[1744117421257,0.262613,79966.0,79963.0,0.14079949]
[1744117421464,0.250103,79967.0,79963.0,0.39091349]
[1744117421686,0.250106,79966.0,79963.0,0.14079949]
[1744117421813,0.012505,79967.0,79963.0,0.39091349]
[1744117422009,0.250111,79965.0,79963.0,0.14079949]
[1744117422220,0.262608,79967.0,79964.0,0.250111]
[1744117422449,0.25011,79965.0,79963.0,0.14079949]
[1744117422825,0.012504,79969.0,79964.0,0.012505]
[1744117423179,0.26471917,79972.0,79966.0,0.250104]
[1744117423365,0.00012517,79972.0,79970.0,0.250092]
[1744117423914,0.25021317,79972.0,79970.0,0.250092]
[1744117424116,0.25021317,79972.0,79969.0,0.250096]
[1744117424316,0.00012517,79972.0,79968.0,0.262605]
[1744117424545,0.00012517,79972.0,79969.0,0.250094]
[1744117424746,0.00012517,79972.0,79970.0,0.250093]
[1744117424957,0.24614494,79973.0,79970.0,0.250093]
[1744117425162,0.590068,79979.0,79972.0,0.012504]
[1744117425418,0.2502392,79978.0,79976.0,0.250074]
[1744117425642,0.0001682,79978.0,79974.0,0.25008]
[1744117425866,0.25008,79975.0,79973.0,0.14952]
[1744117426060,0.262583,79975.0,79973.0,0.14952]
[1744117426303,0.250081,79974.0,79973.0,0.14952]
[1744117426706,0.262585,79974.0,79973.0,0.14952]
[1744117427609,0.250096,79969.0,79968.0,0.41439914]
[1744117427817,0.250096,79969.0,79958.0,0.00935938]
[1744117427818,0.012506,79959.0,79958.0,0.00935938]
[1744117428019,0.602634,79959.0,79958.0,0.00012517]
[1744117429567,0.651934,79959.0,79958.0,0.00012517]
[1744117429768,0.602696,79940.0,79939.0,0.41439914]
[1744117430062,0.262702,79938.0,79937.0,0.000336]
[1744117432077,0.602702,79938.0,79937.0,0.000336]
[1744117432427,0.602702,79938.0,79937.0,0.001336]
[1744117432627,0.602702,79938.0,79937.0,0.000336]
[1744117433070,0.602702,79938.0,79937.0,0.001336]
[1744117433275,0.602702,79938.0,79937.0,0.000336]
[1744117433453,0.25113663,79949.0,79937.0,0.012845]
[1744117433779,0.253193,79938.0,79937.0,0.000336]
[1744117433934,0.269702,79938.0,79937.0,0.000336]
[1744117434493,0.265702,79938.0,79937.0,0.000336]
[1744117434885,0.262702,79938.0,79937.0,0.000336]
[1744117435495,0.250167,79947.0,79942.0,0.250178]
[1744117435696,0.012508,79943.0,79942.0,0.14956]
[1744117436000,0.262686,79943.0,79942.0,0.14956]
[1744117437445,0.269686,79943.0,79942.0,0.14956]
[1744117438454,0.007,79943.0,79942.0,0.53850864]
[1744117438715,0.007,79943.0,79942.0,0.59854949]
[1744117439112,0.007,79943.0,79942.0,1.01294863]
[1744117439511,0.002,79943.0,79942.0,1.01294863]
[1744117439673,0.250116,79963.0,79959.0,0.250125]
[1744117439869,0.012505,79963.0,79950.0,0.41439914]
[1744117440116,0.25015,79952.0,79951.0,0.14956]
[1744117440459,0.262657,79952.0,79951.0,0.14956]
[1744117442525,0.266657,79952.0,79951.0,0.14956]
[1744117444362,0.004,79952.0,79951.0,0.399713]
[1744117444559,0.004,79952.0,79951.0,0.41222]
[1744117444937,0.004,79952.0,79951.0,0.74851949]
[1744117445337,0.002,79952.0,79951.0,0.74851949]
[1744117445537,0.262624,79962.0,79957.0,0.262637]
[1744117445743,0.250122,79961.0,79958.0,0.25013]
[1744117445937,0.250125,79960.0,79958.0,0.25013]
[1744117446144,0.250125,79960.0,79957.0,0.012506]
[1744117446145,0.250125,79960.0,79957.0,0.250131]
[1744117446342,0.250122,79961.0,79959.0,0.250127]
[1744117446541,0.250122,79961.0,79959.0,0.00920243]
[1744117446745,0.25013,79959.0,79956.0,0.250131]
[1744117447064,0.012507,79953.0,79951.0,0.14956]
[1744117447363,0.250148,79953.0,79951.0,0.14956]
[1744117448095,0.25015,79952.0,79951.0,0.14956]
[1744117448240,0.25015,79952.0,79951.0,0.15900828]
[1744117448768,0.262657,79952.0,79951.0,0.15900828]
[1744117449171,0.25014,79955.0,79951.0,0.15900828]
[1744117449402,0.002,79961.0,79960.0,0.262631]
[1744117449548,0.012505,79966.0,79961.0,0.250121]
[1744117449802,0.231195,79963.0,79960.0,0.262625]
[1744117450004,0.250119,79962.0,79960.0,0.250119]
[1744117450198,0.250122,79961.0,79959.0,0.250127]
[1744117450367,0.012506,79957.0,79953.0,0.01454085]
[1744117450563,0.250137,79956.0,79952.0,0.250148]
[1744117450803,0.250141,79955.0,79951.0,0.42166728]
[1744117451015,0.250137,79956.0,79954.0,0.250143]
[1744117451213,0.250133,79958.0,79955.0,0.25014]
[1744117451657,0.262634,79959.0,79956.0,0.250137]
[1744117451808,0.250132,79958.0,79955.0,0.25014]
[1744117452209,0.250138,79956.0,79953.0,0.262653]
[1744117452395,0.262637,79958.0,79954.0,0.250143]
[1744117452745,0.262634,79960.0,79956.0,0.250137]
[1744117452891,0.250131,79958.0,79954.0,0.262647]
[1744117453094,0.250128,79960.0,79955.0,0.262646]
[1744117453395,0.250128,79959.0,79955.0,0.262646]
[1744117453596,0.001,79958.0,79956.0,0.250135]
[1744117453835,0.262637,79960.0,79957.0,0.250134]
[1744117454039,0.001,79958.0,79957.0,0.250134]
[1744117454259,0.001,79958.0,79957.0,0.26264]
[1744117454595,0.001,79958.0,79957.0,0.40343949]
[1744117454796,0.001,79958.0,79957.0,0.45123949]
[1744117455024,0.001,79958.0,79957.0,0.49833949]
[1744117455416,0.0001251,79968.0,79967.0,0.262608]
[1744117455616,0.0001251,79968.0,79967.0,0.412128]
[1744117457052,0.0021251,79968.0,79967.0,0.413128]
[1744117457262,0.0071251,79968.0,79967.0,0.55492749]
[1744117457468,0.0071251,79968.0,79967.0,0.60272749]
[1744117458451,0.0051251,79968.0,79967.0,0.60172749]
[1744117458659,0.0001251,79968.0,79967.0,0.60072749]
[1744117458857,0.0031251,79968.0,79967.0,0.60172749]
[1744117459060,0.0031251,79968.0,79967.0,0.60072749]
[1744117459264,0.0031251,79968.0,79967.0,0.58618664]
[1744117459618,0.0001251,79968.0,79967.0,0.60172749]
[1744117459820,0.0001251,79968.0,79967.0,0.60272749]
[1744117465203,0.0001251,79968.0,79967.0,0.45320749]
[1744117466191,0.0001251,79968.0,79967.0,0.002]
[1744117466391,0.0001251,79968.0,79967.0,0.252103]
[1744117466638,0.0001251,79968.0,79967.0,0.264608]
[1744117467005,0.0001251,79968.0,79967.0,0.27914885]
[1744117467198,0.0001251,79968.0,79967.0,0.55540749]
[1744117467448,0.0001251,79968.0,79967.0,0.65380749]
[1744117468524,0.0001251,79968.0,79967.0,0.677153]
[1744117473573,1e-07,79968.0,79967.0,0.677153]
[1744117473741,1e-07,79968.0,79967.0,1.017153]
[1744117474297,0.0001682,79978.0,79977.0,0.461574]
[1744117474495,0.0001682,79978.0,79977.0,0.625719]
[1744117474699,0.0001682,79978.0,79977.0,0.63515182]
[1744117476322,0.0001682,79978.0,79977.0,0.64915182]
[1744117477125,0.0003363,79989.0,79988.0,0.262538]
[1744117477400,0.0003363,79989.0,79978.0,0.250068]
[1744117477401,0.012502,79986.0,79978.0,0.250068]
[1744117477571,0.250046,79986.0,79981.0,0.250057]
[1744117477772,0.012502,79986.0,79979.0,0.37632064]
[1744117478011,0.250042,79987.0,79983.0,0.250053]
[1744117478349,0.250043,79986.0,79982.0,0.250055]
[1744117478554,0.25005,79984.0,79980.0,0.03582726]
[1744117478751,0.250054,79983.0,79980.0,0.3996439]
[1744117478950,0.25005,79984.0,79980.0,0.1495829]
[1744117479152,0.250047,79985.0,79981.0,0.250057]
[1744117479382,0.250047,79985.0,79981.0,0.27338126]
[1744117479583,0.250047,79985.0,79982.0,0.250055]
[1744117479755,0.0003363,79989.0,79983.0,0.250053]
[1744117479973,0.0003363,79989.0,79983.0,0.1620849]
[1744117480179,0.2503713,79989.0,79985.0,0.250045]
[1744117480386,0.250041,79987.0,79984.0,0.250049]
[1744117480885,0.25004,79988.0,79985.0,0.250046]
[1744117481500,0.25005,79984.0,79983.0,0.12625864]
[1744117481695,0.250047,79985.0,79983.0,0.12625864]
[1744117481895,0.24936222,79984.0,79983.0,0.12625864]
[1744117482097,0.262555,79983.0,79982.0,0.02333827]
[1744117482298,0.250047,79985.0,79982.0,0.02733827]
[1744117482499,0.250047,79985.0,79980.0,0.250061]
[1744117482697,0.250058,79982.0,79980.0,0.12625864]
[1744117482898,0.250059,79981.0,79980.0,0.12625864]
[1744117483100,0.250046,79985.0,79980.0,0.12625864]
[1744117483101,0.250058,79982.0,79980.0,0.12625864]
[1744117483281,0.250059,79981.0,79980.0,0.12625864]
[1744117483686,0.237553,79984.0,79981.0,0.250058]
[1744117483970,0.250058,79982.0,79980.0,0.12625864]
[1744117484123,0.0003363,79989.0,79988.0,0.250037]
[1744117484329,0.0003363,79989.0,79988.0,0.262538]
[1744117484792,0.0003363,79989.0,79987.0,0.250039]
[1744117484995,0.0003363,79989.0,79988.0,0.27337527]
[1744117485621,0.0003363,79989.0,79988.0,0.02333827]
[1744117485848,0.0023363,79989.0,79988.0,0.02333827]
[1744117486062,0.2523703,79989.0,79988.0,0.02333827]
[1744117486262,0.0023363,79989.0,79986.0,0.27338127]
[1744117487168,0.0033363,79989.0,79988.0,0.250037]
[1744117487579,0.0033363,79989.0,79985.0,0.03584027]
[1744117487580,0.262545,79986.0,79985.0,0.02333827]
[1744117487999,0.250068,79978.0,79977.0,0.00943282]
[1744117488162,0.250075,79976.0,79972.0,0.02333827]
[1744117488362,0.250081,79974.0,79973.0,0.02333827]
[1744117488600,0.262597,79970.0,79969.0,0.02333827]
[1744117489376,0.602597,79970.0,79969.0,0.02333827]
[1744117489578,0.602597,79970.0,79968.0,0.11236564]
[1744117489579,0.6488,79969.0,79968.0,0.11236564]
[1744117489990,0.6488,79969.0,79952.0,0.11236564]
[1744117489991,0.262653,79953.0,79952.0,0.11236564]
[1744117491391,0.250146,79953.0,79952.0,0.11236564]
[1744117491921,0.262653,79953.0,79952.0,0.11336564]
[1744117492358,0.262653,79953.0,79952.0,0.12255187]
[1744117492632,0.262653,79953.0,79952.0,0.12355187]
[1744117492792,0.34,79961.0,79952.0,0.12355187]
[1744117493000,0.250146,79954.0,79952.0,0.12355187]
[1744117493205,0.250146,79953.0,79952.0,0.12355187]
[1744117493409,0.250146,79953.0,79952.0,0.01118623]
[1744117493761,0.250146,79953.0,79952.0,0.01018623]
[1744117494636,0.262653,79953.0,79952.0,0.01018623]
[1744117494940,0.250143,79954.0,79952.0,0.00918623]
[1744117495132,0.250146,79953.0,79952.0,0.01018623]
[1744117495309,0.262653,79953.0,79952.0,0.001]
[1744117496999,0.262679,79945.0,79944.0,0.0001251]
[1744117497241,0.262679,79945.0,79944.0,0.00947623]
[1744117498153,0.263679,79945.0,79944.0,0.00947623]
[1744117499332,0.603679,79945.0,79944.0,0.0001251]
[1744117501007,0.73093764,79945.0,79944.0,0.0001251]
[1744117501475,0.006,79945.0,79944.0,0.2628081]
[1744117502058,0.006,79945.0,79944.0,0.0001251]
[1744117502266,0.264679,79945.0,79944.0,0.0001251]
[1744117502780,0.265679,79945.0,79944.0,0.0001251]
[1744117503177,0.267679,79945.0,79944.0,0.0001251]
[1744117504786,0.78016654,79945.0,79944.0,0.0001251]
[1744117505085,0.73393764,79945.0,79944.0,0.0001251]
[1744117505303,0.78023764,79945.0,79944.0,0.0001251]
[1744117505785,0.82683764,79945.0,79944.0,0.0001251]
[1744117506398,0.82483764,79945.0,79944.0,0.0001251]
[1744117506826,0.82483764,79945.0,79944.0,1e-07]
[1744117506827,0.95109309,79945.0,79944.0,1e-07]
[1744117506976,0.82683764,79945.0,79944.0,1e-07]
[1744117508188,0.602759,79921.0,79910.0,0.0003366]
[1744117508366,0.72901764,79921.0,79915.0,0.00955601]
[1744117508671,0.72901764,79921.0,79910.0,0.0003366]
[1744117509504,0.72910625,79921.0,79910.0,0.0003366]
[1744117509741,0.73510625,79921.0,79920.0,0.0013366]
[1744117509884,0.74010625,79921.0,79920.0,0.0013366]
[1744117511346,0.75270846,79921.0,79920.0,0.0013366]
[1744117514850,0.62644982,79921.0,79920.0,0.0013366]
[1744117515458,0.02369082,79921.0,79920.0,0.0013366]
[1744117515619,0.28644982,79921.0,79920.0,0.0013366]
[1744117516633,0.01108861,79921.0,79920.0,0.0013366]
[1744117517155,0.01108861,79921.0,79920.0,0.39035724]
[1744117517309,0.01108861,79921.0,79920.0,0.40489809]
[1744117517741,0.01108861,79921.0,79920.0,0.88988343]
[1744117518115,0.00508861,79921.0,79920.0,0.88888343]
[1744117518314,0.00508861,79921.0,79920.0,0.86559809]
[1744117518515,0.00608861,79921.0,79920.0,0.86559809]
[1744117518746,6.1e-07,79921.0,79920.0,0.86559809]
[1744117519106,0.23862963,79950.0,79920.0,0.86559809]
[1744117519107,0.012508,79948.0,79941.0,0.30999]
[1744117519309,0.012509,79939.0,79936.0,0.4144]
[1744117519541,0.250194,79938.0,79935.0,0.250202]
[1744117519741,0.2627,79939.0,79935.0,0.250202]
[1744117519961,0.2627,79939.0,79934.0,0.262715]
[1744117520138,0.250198,79937.0,79934.0,0.250203]
[1744117520335,0.250188,79940.0,79934.0,0.01251]
[1744117520578,0.250188,79940.0,79933.0,0.05981]
[1744117520579,0.250195,79938.0,79933.0,0.05981]
[1744117520791,0.012509,79937.0,79933.0,0.0473]
[1744117521283,0.250197,79937.0,79935.0,0.001]
[1744117521515,0.2502,79936.0,79935.0,0.001]
[1744117521714,0.26271,79936.0,79935.0,0.01052182]
[1744117521945,0.60271,79936.0,79935.0,0.001]
[1744117522321,0.602716,79934.0,79933.0,0.001]
[1744117522518,0.262725,79931.0,79930.0,0.00948144]
[1744117522880,0.250237,79924.0,79920.0,0.2505836]
[1744117523081,0.250244,79922.0,79920.0,0.2505836]
[1744117523295,0.250244,79922.0,79920.0,0.0003366]
[1744117523805,0.262748,79924.0,79920.0,0.25995839]
[1744117524002,0.250246,79922.0,79920.0,0.01012595]
[1744117524841,0.012512,79921.0,79920.0,0.01312595]
[1744117525219,0.012512,79921.0,79920.0,0.01012595]
[1744117525398,0.012512,79921.0,79920.0,0.01412595]
[1744117525860,0.012512,79921.0,79920.0,0.01012595]
[1744117526068,0.262759,79921.0,79920.0,0.01212595]
[1744117526672,0.250246,79922.0,79920.0,0.01212595]
[1744117526984,0.250247,79921.0,79920.0,0.01212595]
[1744117527386,0.262749,79924.0,79920.0,0.01212595]
[1744117527387,0.23862963,79930.0,79929.0,0.25022]
[1744117527586,0.01251,79931.0,79923.0,0.012512]
[1744117527795,0.23862963,79930.0,79929.0,0.250222]
[1744117528130,0.23862963,79930.0,79920.0,0.01212595]
[1744117528131,0.250234,79925.0,79920.0,0.01212595]
[1744117528283,0.012511,79925.0,79920.0,0.01212595]
[1744117528482,0.250244,79922.0,79920.0,0.01212595]
[1744117528668,0.250243,79923.0,79920.0,0.01012595]
[1744117528864,0.250244,79922.0,79920.0,0.01012595]
[1744117529108,0.250247,79921.0,79920.0,0.01012595]
[1744117529336,0.262759,79921.0,79920.0,0.01012595]
[1744117529837,0.262759,79921.0,79920.0,0.01212595]
[1744117529953,0.262759,79921.0,79920.0,0.01012595]
[1744117530155,0.34,79929.0,79923.0,0.25024]
[1744117530488,0.012511,79925.0,79920.0,0.02463795]
[1744117530851,0.250244,79922.0,79920.0,0.01212595]
[1744117530990,0.250247,79921.0,79920.0,0.01212595]
[1744117531195,0.262751,79924.0,79920.0,0.01212595]
[1744117531393,0.341,79929.0,79928.0,0.250225]
[1744117531817,0.34,79929.0,79924.0,0.262742]
[1744117532216,0.34,79929.0,79927.0,0.012511]
[1744117532415,0.34,79929.0,79928.0,0.262736]
[1744117532838,0.250225,79928.0,79924.0,0.262746]
[1744117533055,0.250231,79926.0,79922.0,0.250243]
[1744117533212,0.250237,79925.0,79920.0,0.27288695]
[1744117533411,0.250239,79924.0,79921.0,0.250245]
[1744117533764,0.250239,79924.0,79920.0,0.27288695]
[1744117533765,0.25024,79923.0,79920.0,0.27288695]
[1744117534119,0.262736,79928.0,79923.0,0.012512]
[1744117534463,0.262736,79928.0,79924.0,0.250237]
[1744117534845,0.250225,79928.0,79925.0,0.250232]
[1744117535877,0.250225,79928.0,79920.0,0.26037295]
[1744117535878,0.250235,79925.0,79920.0,0.26037295]
[1744117536076,0.25024,79923.0,79920.0,0.26037295]
[1744117536399,0.012511,79928.0,79921.0,0.262759]
[1744117536590,0.34,79929.0,79925.0,0.250231]
[1744117536733,0.250226,79928.0,79925.0,0.262742]
[1744117536939,0.250226,79928.0,79925.0,0.250231]
[1744117537143,0.250229,79927.0,79924.0,0.262747]
[1744117537341,0.250229,79927.0,79925.0,0.250234]
[1744117537686,0.352511,79929.0,79927.0,0.250228]
[1744117537687,0.34,79929.0,79927.0,0.250228]
[1744117537822,0.602735,79929.0,79925.0,0.250234]
[1744117538000,0.250231,79926.0,79922.0,0.262755]
[1744117538176,0.250231,79926.0,79923.0,0.250238]
[1744117538589,0.590222,79929.0,79924.0,0.262748]
[1744117538791,0.590222,79929.0,79925.0,0.250234]
[1744117539036,0.590222,79929.0,79926.0,0.250229]
[1744117539215,0.250232,79926.0,79924.0,0.250237]
[1744117539415,0.250231,79926.0,79924.0,0.250237]
[1744117539643,0.25113963,79930.0,79924.0,0.012511]
[1744117539795,0.250229,79927.0,79924.0,0.002]
[1744117539996,0.250229,79927.0,79923.0,0.26275]
[1744117540315,0.50136063,79930.0,79926.0,0.250228]
[1744117540547,0.50136063,79930.0,79927.0,0.250227]
[1744117540715,0.23862963,79930.0,79928.0,0.250223]
[1744117540914,0.250228,79927.0,79922.0,0.250243]
[1744117541714,0.250231,79926.0,79922.0,0.250243]
[1744117541923,0.262738,79928.0,79924.0,0.250237]
[1744117542122,0.262755,79923.0,79920.0,0.01012595]
[1744117542327,0.250247,79921.0,79920.0,0.01012595]
[1744117542526,0.262746,79925.0,79921.0,0.250244]
[1744117542759,0.25023,79927.0,79923.0,0.012512]
[1744117542900,0.23862963,79930.0,79926.0,0.012511]
[1744117543104,0.590215,79932.0,79929.0,0.250218]
[1744117543347,0.34,79932.0,79930.0,0.250216]
[1744117543553,0.23862963,79940.0,79937.0,0.012509]
[1744117543746,0.012509,79939.0,79931.0,0.06171]
[1744117544065,0.012511,79929.0,79925.0,0.4144]
[1744117544221,0.262742,79926.0,79925.0,0.4144]
[1744117545504,0.602742,79926.0,79925.0,0.4144]
[1744117546139,0.602742,79926.0,79925.0,0.4154]
[1744117548972,0.602742,79926.0,79925.0,0.001]
[1744117549387,0.72900064,79926.0,79925.0,0.001]
[1744117550483,0.602759,79921.0,79920.0,0.00075416]
[1744117550689,0.72901764,79921.0,79920.0,0.00075416]
[1744117551703,0.77861764,79921.0,79920.0,0.00075416]
[1744117552096,0.85171293,79921.0,79920.0,0.00075416]
[1744117552240,0.82701764,79921.0,79920.0,0.00075416]
[1744117552454,0.607762,79920.0,79919.0,7.6e-07]
[1744117552671,0.73402064,79920.0,79919.0,9.6e-07]
[1744117552844,0.76326872,79920.0,79919.0,9.6e-07]
[1744117553194,0.76326872,79920.0,79895.0,0.11236564]
[1744117553195,0.652395,79910.0,79909.0,1.6e-07]
[1744117553402,0.602821,79902.0,79895.0,0.11236564]
[1744117553598,0.72907964,79902.0,79901.0,0.00408861]
[1744117554472,0.72907964,79902.0,79901.0,0.00205154]
[1744117554675,0.74137985,79902.0,79901.0,0.00205154]
[1744117555927,0.74237985,79902.0,79901.0,0.00205154]
[1744117556732,0.74337985,79902.0,79901.0,0.00205154]
[1744117558171,0.61712121,79902.0,79901.0,0.00205154]
[1744117558957,0.74337985,79902.0,79901.0,0.00205154]
[1744117562412,0.76669688,79902.0,79901.0,5.4e-07]
[1744117562965,0.86849688,79902.0,79901.0,5.4e-07]
[1744117563338,0.86749688,79902.0,79901.0,5.4e-07]
[1744117563541,1.00641252,79902.0,79901.0,5.4e-07]
[1744117563753,1.29195707,79902.0,79901.0,5.4e-07]
[1744117564277,1.27829688,79902.0,79901.0,5.4e-07]
[1744117564597,0.602858,79891.0,79890.0,0.0003362]
[1744117564753,0.72911664,79891.0,79890.0,0.0003362]